bitfinex-derivatives/quotes_ETHF0:USTF0_20260310
["timestamp","ask_amount","ask_price","bid_price","bid_amount"]
[1773120415804,6.01226,2045.8,2043.9,10.18349178]
[1773120416011,2.67480131,2044.7,2044.0,0.59866549]
[1773120416210,0.00146627,2045.1,2044.1,0.59866549]
[1773120416503,3.51842553,2044.7,2044.4,0.57052584]
[1773120416708,0.00577669,2044.7,2044.6,0.57052584]
[1773120416913,7.63122637,2045.4,2044.7,0.57052584]
[1773120417102,8.20046167,2045.5,2045.0,0.57052584]
[1773120417303,0.5692353,2045.5,2045.0,0.57052584]
[1773120417498,0.5692353,2045.5,2045.1,0.57052584]
[1773120417707,0.5692353,2045.5,2045.0,12.78652585]
[1773120417905,0.57395741,2045.5,2045.0,12.78652585]
[1773120418307,0.57395741,2045.5,2045.1,10.305]
[1773120420910,0.57395741,2045.5,2045.2,68.92045159]
[1773120420911,0.00472211,2045.5,2045.2,68.92045159]
[1773120421111,0.5692353,2045.7,2045.3,0.57052584]
[1773120421305,0.5692353,2045.7,2045.4,10.19421866]
[1773120421508,0.5692353,2046.3,2045.4,10.19421866]
[1773120421807,0.5692353,2046.3,2045.4,68.92045159]
[1773120422113,0.57458658,2046.3,2045.4,68.92045159]
[1773120422707,0.57458658,2046.3,2045.5,10.37]
[1773120426315,4.4060403,2046.1,2045.6,78.77792575]
[1773120426527,4.4060403,2046.1,2045.6,42.13877914]
[1773120426813,4.4060403,2046.1,2045.6,32.51508632]
[1773120427407,4.01571207,2045.9,2045.2,4.43462674]
[1773120427608,4.01571207,2045.3,2044.6,26.55750279]
[1773120428011,2.45388861,2045.2,2044.6,26.55750279]
[1773120428212,2.45388861,2045.2,2044.6,16.93380997]
[1773120428511,2.45388861,2045.2,2044.5,4.43462674]
[1773120428717,2.45388861,2045.0,2044.6,31.04601039]
[1773120428910,7.70199396,2044.9,2044.6,31.04601039]
[1773120429112,2.45388861,2045.0,2044.7,12.21600001]
[1773120429312,11.34802134,2044.9,2044.6,26.56350279]
[1773120429512,11.34802134,2044.8,2044.5,10.458]
[1773120429707,3.64936301,2044.8,2044.4,14.8763186]
[1773120429911,3.64936301,2044.8,2044.4,14.8773186]
[1773120430113,3.64936301,2044.8,2044.5,10.47]
[1773120430516,3.64936301,2044.8,2044.4,4.4123186]
[1773120430715,4.03081866,2045.1,2044.5,4.41190944]
[1773120430941,11.73311394,2045.0,2044.5,4.41190944]
[1773120431109,12.10833558,2044.9,2044.5,4.41190944]
[1773120431316,7.70229528,2044.8,2044.5,4.41190944]
[1773120431514,4.4060403,2044.9,2044.5,4.41190944]
[1773120431713,12.10833558,2044.8,2044.5,4.41190944]
[1773120432016,7.70255896,2044.7,2044.5,14.90790944]
[1773120432315,4.4060403,2044.8,2044.5,14.90790944]
[1773120432517,4.4060403,2044.8,2044.4,15.12049847]
[1773120432718,7.70255896,2044.7,2044.4,4.61549847]
[1773120433014,4.4060403,2044.8,2044.4,4.61549847]
[1773120433216,12.10859926,2044.7,2044.4,4.61549847]
[1773120433416,12.10859926,2044.7,2044.4,10.52035007]
[1773120433417,7.70255896,2044.6,2044.4,10.52035007]
[1773120433617,4.4060403,2044.6,2044.1,10.517]
[1773120433823,4.4060403,2044.6,2044.2,4.58103429]
[1773120434619,4.4060403,2044.6,2044.3,10.527]
[1773120434818,7.70297334,2044.5,2044.3,10.527]
[1773120435019,4.4060403,2044.6,2044.2,15.118516]
[1773120435216,4.4060403,2044.6,2044.2,4.585516]
[1773120435421,4.41143717,2044.9,2044.4,4.58853235]
[1773120435616,4.4060403,2044.7,2044.2,0.00448171]
[1773120435817,12.10865576,2044.6,2044.3,15.12753235]
[1773120436021,4.4060403,2044.6,2044.3,4.58853235]
[1773120436613,4.4060403,2044.6,2044.2,15.06439416]
[1773120437117,0.00539687,2044.9,2044.3,4.51605596]
[1773120437321,4.4060403,2044.7,2044.3,4.51605596]
[1773120437620,4.4060403,2044.5,2044.2,15.07553767]
[1773120437921,12.1093904,2044.4,2044.0,4.51605596]
[1773120438124,12.1093904,2044.3,2044.0,15.07305596]
[1773120438323,4.4060403,2044.3,2044.0,15.07305596]
[1773120438522,4.01571207,2044.7,2044.0,15.07305596]
[1773120438719,0.00539687,2044.9,2043.4,40.8]
[1773120438720,4.4060403,2044.3,2043.7,4.51781938]
[1773120438922,4.4060403,2044.1,2043.7,4.51781938]
[1773120439321,12.11097316,2044.0,2043.7,4.51781938]
[1773120439620,4.4060403,2044.3,2043.6,4.5189556]
[1773120439823,4.4060403,2044.1,2043.6,4.5250852]
[1773120440022,12.11097316,2044.0,2043.6,4.5250852]
[1773120440221,4.4060403,2044.0,2043.6,4.5250852]
[1773120440418,7.70576219,2043.9,2043.2,4.48667519]
[1773120440623,14.04843411,2043.8,2043.2,4.48667519]
[1773120440924,2.4829697,2043.6,2043.2,4.48667519]
[1773120441224,2.4829697,2044.1,2043.2,5.91101323]
[1773120441421,2.4829697,2044.1,2043.2,5.9169645]
[1773120441820,2.4829697,2044.1,2043.4,4.2174099]
[1773120442020,2.4829697,2044.1,2043.5,14.7584099]
[1773120442619,2.4829697,2044.1,2043.6,4.2174099]
[1773120443023,2.4829697,2044.1,2043.6,14.7684099]
[1773120443326,2.4829697,2044.1,2043.7,4.2174099]
[1773120443520,2.4829697,2044.1,2043.6,14.7734099]
[1773120444227,2.4829697,2044.1,2043.5,3.82592349]
[1773120444924,2.4829697,2044.1,2043.5,14.39392349]
[1773120445535,2.4829697,2044.1,2043.5,3.82592349]
[1773120446526,4.4060403,2043.9,2043.4,14.7954099]
[1773120447226,4.4060403,2043.9,2043.4,4.2174099]
[1773120447627,4.4060403,2043.9,2043.2,4.22336117]
[1773120447829,4.4060403,2043.7,2043.0,4.2174099]
[1773120448024,4.4060403,2043.6,2043.0,14.7624099]
[1773120448333,4.4060403,2043.6,2043.0,4.2174099]
[1773120448931,4.4060403,2043.6,2043.0,4.22143141]
[1773120449732,4.4060403,2043.6,2043.0,0.00402151]
[1773120449936,4.4060403,2043.6,2043.0,4.22143141]
[1773120450126,4.4060403,2043.6,2043.1,4.2174099]
[1773120450329,4.4060403,2043.6,2043.1,14.7484099]
[1773120450528,4.4060403,2043.6,2043.0,14.68443141]
[1773120450833,4.4060403,2043.6,2043.0,4.22143141]
[1773120451028,4.4060403,2043.6,2043.0,14.68943141]
[1773120452823,4.4060403,2043.6,2043.0,4.22143141]
[1773120453222,4.4060403,2043.4,2043.0,4.22143141]
[1773120453423,7.69117076,2043.3,2043.0,4.22143141]
[1773120453632,7.69117076,2043.2,2043.0,4.22143141]
[1773120453832,7.69117076,2043.1,2042.5,7.70076295]
[1773120454131,14.92358605,2043.0,2042.2,7.70076295]
[1773120454324,6.10167978,2043.3,2041.7,0.24487]
[1773120454325,0.65987992,2042.9,2042.4,7.70076295]
[1773120454530,7.23186507,2043.2,2042.6,2.24645835]
[1773120454726,7.23186507,2043.2,2042.1,0.24482]
[1773120454928,7.23186507,2043.2,2042.6,0.0039294]
[1773120455230,7.23186507,2043.2,2042.5,2.24645835]
[1773120455231,7.23186507,2043.2,2042.5,10.531]
[1773120455631,7.23186507,2043.2,2042.5,13.82759206]
[1773120456030,7.23186507,2043.2,2042.6,3.34136334]
[1773120456230,7.23186507,2043.2,2042.6,3.34537184]
[1773120457034,13.33801775,2043.4,2042.6,3.34537184]
[1773120457330,7.23633797,2043.4,2042.6,3.34537184]
[1773120457731,7.63122637,2043.6,2042.6,3.34537184]
[1773120458030,17.40121254,2043.8,2042.6,3.59014184]
[1773120458031,7.23186507,2043.8,2042.6,3.59014184]
[1773120458232,7.23186507,2043.8,2042.8,2.95269464]
[1773120458429,7.23186507,2043.4,2042.6,2.95670314]
[1773120458937,7.2358038,2043.4,2042.6,2.95670314]
[1773120459127,7.2358038,2043.4,2042.8,3.3501249]
[1773120459934,7.2358038,2043.4,2042.8,13.71175717]
[1773120460437,7.2358038,2043.4,2042.9,3.13075717]
[1773120461846,7.2358038,2043.4,2043.0,10.601]
[1773120462136,7.2358038,2043.4,2042.7,3.10052025]
[1773120462338,7.2358038,2043.4,2042.9,2.71137899]
[1773120463240,7.2358038,2043.4,2043.0,2.68172198]
[1773120464534,7.2358038,2043.4,2042.9,10.611]
[1773120464737,7.2358038,2043.4,2042.9,13.12151886]
[1773120464943,7.2358038,2043.4,2042.9,2.51051886]
[1773120465144,7.2358038,2043.4,2042.9,13.13551886]
[1773120466445,14.5901938,2043.3,2042.9,13.13551886]
[1773120466647,7.35832873,2043.2,2043.0,2.38777831]
[1773120466847,7.35832873,2043.1,2043.0,2.38777831]
[1773120467047,1.68307198,2043.1,2043.0,2.38777831]
[1773120467244,1.68307198,2043.1,2043.0,10.637]
[1773120468243,1.68307198,2043.1,2042.7,10.641]
[1773120468449,0.00393873,2043.4,2042.7,10.641]
[1773120468848,0.00393873,2043.4,2042.6,0.0040085]
[1773120469048,0.00393873,2043.4,2042.8,10.644]
[1773120469746,9.4996485,2043.6,2042.8,10.644]
[1773120470050,17.12150801,2043.8,2042.9,10.647]
[1773120470246,7.63857301,2043.9,2042.9,10.647]
[1773120470440,17.12150801,2044.0,2042.9,10.647]
[1773120470846,9.482935,2043.9,2042.9,10.647]
[1773120471149,9.482935,2043.9,2043.0,40.8]
[1773120475055,9.482935,2043.9,2043.1,10.664]
[1773120476055,9.482935,2043.9,2043.0,40.8]
[1773120476356,9.482935,2043.9,2043.1,10.671]
[1773120476754,9.60301759,2043.8,2043.1,10.671]
[1773120477258,4.0945195,2043.9,2043.1,10.671]
[1773120477259,13.69575515,2043.9,2043.1,10.671]
[1773120478057,4.0945195,2043.9,2043.1,10.671]
[1773120478459,4.09841821,2044.0,2043.1,10.671]
[1773120478861,0.00389871,2044.0,2043.1,10.671]
[1773120479054,6.94820916,2043.9,2043.1,10.671]
[1773120479254,0.00389871,2044.0,2043.1,10.671]
[1773120479454,6.94593435,2043.9,2043.1,10.671]
[1773120479657,0.00389871,2044.0,2043.1,10.671]
[1773120479857,6.94593435,2043.9,2043.1,10.671]
[1773120480057,9.62993141,2044.0,2043.1,10.671]
[1773120480260,6.9113668,2043.9,2043.1,10.671]
[1773120480558,9.62993141,2044.0,2043.1,10.671]
[1773120480755,6.9113668,2043.9,2043.1,10.671]
[1773120480957,9.62993141,2044.0,2043.1,10.671]
[1773120481157,6.9113668,2043.9,2043.1,10.671]
[1773120481356,9.62993141,2044.0,2043.1,10.671]
[1773120481957,0.00389871,2044.0,2043.1,10.671]
[1773120482660,9.6292287,2043.9,2043.2,10.708]
[1773120482960,0.00389871,2044.0,2043.2,10.708]
[1773120483861,9.63125168,2044.0,2043.2,10.708]
[1773120485663,9.63449471,2044.0,2043.2,10.708]
[1773120489862,9.63449471,2044.0,2043.0,40.8]
[1773120490063,9.63449471,2044.0,2043.1,10.759]
[1773120491863,9.7101534,2043.8,2043.2,10.774]
[1773120492055,6.82881798,2043.7,2042.6,0.0040085]
[1773120492255,9.56359408,2043.5,2042.7,10.776]
[1773120492862,9.56359408,2043.3,2042.7,10.776]
[1773120494363,9.56359408,2043.3,2042.7,10.791]
[1773120494764,9.56359408,2043.3,2042.7,6.96629045]
[1773120495763,7.59130105,2043.1,2042.1,1.31005256]
[1773120495961,7.59130105,2043.1,2042.2,12.55373456]
[1773120496162,7.59130105,2043.1,2042.3,10.801]
[1773120496362,7.59130105,2043.1,2042.3,12.55473456]
[1773120496666,7.59130105,2043.1,2042.4,1.75373456]
[1773120496967,7.59130105,2042.9,2042.4,1.75876761]
[1773120498666,7.59130105,2042.9,2042.4,0.00503305]
[1773120499369,7.59130105,2042.9,2042.4,10.82003305]
[1773120499669,7.59130105,2042.9,2042.5,1.85835655]
[1773120499964,7.59130105,2042.9,2042.4,0.00503305]
[1773120500170,7.59130105,2042.7,2041.9,10.818]
[1773120500363,7.59130105,2042.7,2041.9,12.81574866]
[1773120500559,6.82260864,2042.6,2041.7,1.99674866]
[1773120500762,7.59130105,2042.6,2041.8,1.99674866]
[1773120501174,7.59130105,2042.6,2042.0,1.96718225]
[1773120502071,7.59130105,2042.6,2042.1,10.825]
[1773120502572,7.59130105,2042.6,2042.1,12.71035731]
[1773120503066,7.59130105,2042.6,2042.2,1.88535731]
[1773120503471,7.59130105,2042.6,2042.1,12.68045004]
[1773120504269,7.59130105,2042.6,2042.2,2.27432059]
[1773120504472,7.59130105,2043.0,2042.2,2.27432059]
[1773120514776,7.59130105,2043.0,2042.4,2.48374723]
[1773120516077,7.59130105,2043.0,2042.4,10.84]
[1773120518172,7.59130105,2043.0,2042.4,13.17392083]
[1773120518772,7.59130105,2043.0,2042.4,10.84]
[1773120519481,7.59130105,2043.0,2042.4,13.14325406]
[1773120520481,7.59130105,2043.0,2042.4,10.84]
[1773120520679,7.25029529,2042.8,2042.0,10.838]
[1773120520880,7.25029529,2042.8,2042.0,13.10419756]
[1773120522182,24.0945195,2043.0,2042.0,13.10419756]
[1773120522183,7.25029529,2042.6,2042.0,13.10419756]
[1773120522376,7.25029529,2042.6,2041.9,10.837]
[1773120523079,7.25029529,2042.4,2041.9,13.01238166]
[1773120523277,7.25570489,2042.4,2041.9,13.01238166]
[1773120523983,0.0054096,2042.4,2042.0,2.17538166]
[1773120524175,7.25029529,2042.7,2042.0,2.17538166]
[1773120524380,4.0945195,2042.8,2042.1,10.839]
[1773120524381,7.25029529,2042.5,2042.1,10.839]
[1773120524581,7.25029529,2042.5,2042.2,10.839]
[1773120525185,7.25638654,2042.5,2042.2,10.839]
[1773120525482,7.25638654,2042.5,2042.1,12.95034036]
[1773120526683,7.25638654,2042.5,2042.1,10.842]
[1773120528085,7.25638654,2042.5,2042.2,2.03048469]
[1773120528585,7.25638654,2042.5,2042.1,12.87248469]
[1773120529885,7.25638654,2042.5,2042.2,1.99968644]
[1773120531082,7.25638654,2042.5,2041.9,1.93207]
[1773120531283,7.25638654,2042.5,2042.1,1.93207]
[1773120532392,0.00609125,2042.5,2042.1,1.93207]
[1773120532690,7.25638654,2042.5,2042.1,1.93207]
[1773120532885,7.25638654,2042.5,2042.2,10.851]
[1773120533405,7.25638654,2042.5,2041.9,1.83939395]
[1773120533691,7.25638654,2042.5,2042.1,1.83939395]
[1773120534091,0.00609125,2042.5,2042.1,1.83939395]
[1773120534789,7.25638654,2042.5,2042.1,1.83939395]
[1773120535491,0.00609125,2042.5,2042.1,1.83939395]
[1773120535792,7.25029529,2042.7,2042.1,1.83939395]
[1773120535994,14.09580249,2042.6,2042.1,1.83939395]
[1773120536194,7.25029529,2042.6,2042.2,12.34485093]
[1773120536393,7.25029529,2042.6,2042.3,10.857]
[1773120536789,7.25538001,2042.6,2042.3,12.34485093]
[1773120537591,0.00508472,2042.6,2042.4,1.45809431]
[1773120537795,7.08984137,2042.7,2042.4,1.45809431]
[1773120537993,6.81161936,2042.6,2042.4,1.45809431]
[1773120538191,7.08984137,2042.7,2042.4,1.48273289]
[1773120538394,6.81159026,2042.6,2042.4,1.48273289]
[1773120538695,0.00521772,2042.6,2042.4,1.48273289]
[1773120538895,0.00521772,2042.6,2042.3,12.33973289]
[1773120539096,7.09505909,2042.6,2042.3,12.33973289]
[1773120539296,0.00521772,2042.6,2042.3,12.33973289]
[1773120540900,7.08984137,2042.8,2042.4,1.41235118]
[1773120541101,7.08984137,2042.9,2042.4,1.41235118]
[1773120541399,7.08984137,2042.7,2042.5,10.865]
[1773120541995,7.09475192,2042.7,2042.5,10.865]
[1773120542596,7.09475192,2042.7,2042.6,10.866]
[1773120542999,7.09475192,2042.7,2042.3,1.19415226]
[1773120543200,7.09475192,2042.7,2042.4,10.867]
[1773120544306,7.09475192,2042.7,2042.4,11.98975042]
[1773120544604,7.09475192,2042.7,2042.4,10.867]
[1773120545505,7.42010424,2042.7,2042.4,11.95970654]
[1773120546400,7.41519369,2042.9,2042.5,1.09104526]
[1773120547208,7.41519369,2042.9,2042.4,11.92306063]
[1773120547604,7.41958639,2042.9,2042.4,11.92306063]
[1773120547807,7.41958639,2042.9,2042.4,1.05606063]
[1773120548108,7.41958639,2042.9,2042.5,10.872]
[1773120549811,7.41958639,2042.9,2042.4,1.05606063]
[1773120550116,7.41958639,2042.9,2042.5,10.874]
[1773120550302,7.41519369,2042.8,2042.5,10.874]
[1773120550506,0.0043927,2042.9,2042.6,0.93184998]
[1773120550811,0.0043927,2042.9,2042.5,10.874]
[1773120550812,7.41958639,2042.9,2042.5,11.80584998]
[1773120551002,7.41958639,2042.9,2042.5,10.874]
[1773120551904,27.41519369,2043.0,2042.6,0.84617616]
[1773120552109,8.19214637,2042.9,2042.6,10.875]
[1773120552309,5.5076799,2042.9,2042.6,10.875]
[1773120553013,5.51335802,2042.9,2042.6,10.875]
[1773120553509,5.51335802,2042.9,2042.6,10.10735367]
[1773120553716,5.51335802,2042.9,2042.6,7.09232748]
[1773120555712,5.51335802,2042.9,2042.1,2.68446647]
[1773120555713,2.68446647,2042.7,2042.1,6.07041023]
[1773120555912,0.00567812,2042.9,2042.6,6.07041023]
[1773120556414,7.42087181,2042.9,2042.4,6.06165636]
[1773120557613,0.00567812,2042.9,2042.4,6.06165636]
[1773120558020,7.42087181,2042.9,2042.4,6.06165636]
[1773120561016,7.41519369,2042.9,2042.4,6.06165636]
[1773120561324,7.41519369,2042.9,2042.6,6.51770663]
[1773120561522,7.41519369,2042.9,2042.7,10.886]
[1773120561723,7.41519369,2042.9,2042.7,10.887]
[1773120562124,7.42100755,2042.9,2042.7,10.887]
[1773120562726,7.42100755,2042.9,2042.7,7.89259153]
[1773120565723,0.00581386,2042.9,2042.7,14.71783034]
[1773120565931,20.0,2043.0,2042.7,14.71783034]
[1773120566427,27.41519369,2043.0,2042.7,14.71783034]
[1773120566926,27.4209042,2043.0,2042.7,14.71783034]
[1773120571927,19.43752438,2043.0,2042.8,6.82523881]
[1773120572332,14.20276004,2043.4,2042.7,6.82523881]
[1773120572528,6.69466504,2043.3,2042.8,17.73923881]
[1773120572729,14.10985873,2043.2,2042.9,6.82523881]
[1773120573026,7.41519369,2043.2,2042.9,6.82523881]
[1773120573527,7.4211008,2043.2,2042.9,6.82523881]
[1773120574030,0.00590711,2043.2,2042.9,6.82523881]
[1773120576629,7.68063165,2043.5,2042.9,6.82523881]
[1773120576931,6.78756635,2043.6,2042.9,6.82523881]
[1773120576932,14.37516915,2043.4,2042.9,6.82523881]
[1773120577228,7.68063165,2043.4,2042.9,6.82523881]
[1773120577630,7.68512527,2043.4,2042.9,6.82523881]
[1773120581032,0.00449362,2043.4,2042.9,6.82523881]
[1773120582731,7.68512527,2043.4,2042.9,6.82523881]
[1773120585427,0.00449362,2043.4,2042.9,6.82523881]
[1773120585636,0.00449362,2043.4,2043.0,2.68446647]
[1773120585837,7.68063165,2043.6,2043.2,7.49895664]
[1773120586830,7.68594196,2043.6,2043.2,7.49895664]
[1773120589636,7.68594196,2043.6,2043.2,18.53995664]
[1773120589940,7.68594196,2043.6,2043.3,7.49895664]
[1773120590138,7.43432406,2043.6,2043.3,7.50479255]
[1773120591441,0.00531031,2043.6,2043.3,7.50479255]
[1773120592640,7.42901375,2043.7,2043.3,7.50479255]
[1773120593643,7.43441689,2043.7,2043.3,7.50479255]
[1773120595245,7.43441689,2043.7,2043.3,0.00583591]
[1773120595640,7.43441689,2043.7,2043.3,7.49447371]
[1773120600849,7.42901375,2043.9,2043.3,7.49447371]
[1773120601950,7.4333437,2043.9,2043.3,7.49447371]
[1773120603550,7.4333437,2043.9,2043.3,0.00583591]
[1773120603752,7.29219797,2043.7,2043.3,0.00583591]
[1773120605048,7.29219797,2043.7,2042.4,2.68159874]
[1773120605049,7.29219797,2043.7,2043.0,7.31450764]
[1773120605347,7.29219797,2043.5,2042.8,18.45350764]
[1773120605552,7.29219797,2043.4,2042.9,7.31450764]
[1773120605952,7.29219797,2043.6,2042.9,7.31450764]
[1773120606249,7.29219797,2043.4,2042.9,7.31856137]
[1773120608550,7.29219797,2043.4,2042.9,0.00405373]
[1773120610154,7.29219797,2043.4,2042.8,11.169]
[1773120610853,7.29219797,2043.4,2042.8,18.48350764]
[1773120611053,7.29219797,2043.4,2042.9,7.31450764]
[1773120611458,7.29219797,2042.9,2042.0,7.31450764]
[1773120611758,7.29219797,2042.6,2042.1,7.31450764]
[1773120612053,7.29219797,2042.7,2042.2,7.31450764]
[1773120612246,7.29219797,2042.9,2042.2,7.31450764]
[1773120612450,7.29219797,2042.8,2042.2,7.31931324]
[1773120613155,7.29219797,2043.1,2042.2,7.31931324]
[1773120613354,7.29219797,2043.1,2042.3,7.31450764]
[1773120613657,7.29219797,2043.5,2042.7,7.31450764]
[1773120613854,7.29219797,2043.5,2042.9,7.31450764]
[1773120616555,7.29219797,2043.8,2042.9,7.31450764]
[1773120616748,7.29219797,2043.6,2042.9,7.31450764]
[1773120621951,6.405,2043.9,2042.9,7.31450764]
[1773120622152,21.29167603,2045.0,2042.8,11.2]
[1773120622153,7.29219797,2045.1,2043.8,10.75155811]
[1773120622347,7.29219797,2045.1,2044.1,4.48915811]
[1773120622545,7.29219797,2045.1,2044.3,4.48915811]
[1773120622746,7.29219797,2045.1,2044.4,11.264]
[1773120622955,7.29219797,2045.1,2044.4,15.75315811]
[1773120623156,7.29812424,2045.1,2044.4,15.75873089]
[1773120623357,7.29812424,2045.1,2044.5,6.61151]
[1773120625355,7.29812424,2045.1,2044.4,17.75353611]
[1773120625755,7.29812424,2045.1,2044.5,6.48396333]
[1773120626855,0.00592627,2045.1,2044.5,6.48396333]
[1773120627457,7.29812424,2045.1,2044.5,6.48396333]
[1773120627952,7.29812424,2045.1,2044.6,7.00637071]
[1773120628258,7.29812424,2045.1,2044.3,7.95618404]
[1773120628564,7.29812424,2045.1,2044.0,11.305]
[1773120628758,7.29812424,2045.1,2043.9,11.307]
[1773120628953,7.29812424,2045.1,2044.0,7.31450764]
[1773120629153,7.29812424,2045.1,2044.0,7.31904485]
[1773120630563,7.29812424,2045.1,2044.2,7.31450764]
[1773120630763,7.29812424,2045.1,2044.4,7.31450764]
[1773120632262,7.29812424,2045.1,2044.5,11.336]
[1773120632459,7.29812424,2045.1,2044.4,11.338]
[1773120633663,7.29812424,2045.1,2044.4,19.68718055]
[1773120635063,7.29812424,2045.1,2044.5,8.34918055]
[1773120636665,7.29812424,2045.1,2044.3,8.34918055]
[1773120636867,7.29812424,2045.1,2044.4,11.366]
[1773120637761,7.29812424,2045.1,2044.4,19.71518055]
[1773120638366,7.29812424,2045.1,2044.5,8.34918055]
[1773120638969,8.334889,2045.5,2044.5,8.59371055]
[1773120639371,8.334889,2045.8,2044.5,8.59371055]
[1773120639973,8.33946918,2045.8,2044.5,8.59371055]
[1773120640567,8.33946918,2045.8,2044.8,8.34918055]
[1773120640774,8.33946918,2045.8,2044.9,19.74018055]
[1773120641074,8.33946918,2045.8,2044.3,8.34918055]
[1773120641279,8.33946918,2045.8,2044.5,8.34918055]
[1773120643975,8.33946918,2045.8,2044.7,8.34918055]
[1773120647283,8.334889,2045.6,2044.7,8.34918055]
[1773120651082,8.334889,2045.6,2044.9,8.34918055]
[1773120651884,8.33946918,2045.8,2044.9,8.34918055]
[1773120652186,0.00458018,2045.8,2044.9,8.34918055]
[1773120652388,0.00458018,2045.8,2044.8,11.434]
[1773120652389,0.00458018,2045.8,2045.1,8.34918055]
[1773120653883,8.334889,2046.2,2045.1,8.34918055]
[1773120654091,6.13231721,2046.1,2045.1,8.34918055]
[1773120654293,8.334889,2046.2,2045.1,8.34918055]
[1773120654587,8.334889,2046.5,2045.3,8.34918055]
[1773120654887,8.334889,2046.3,2045.3,8.34918055]
[1773120655581,8.334889,2046.3,2045.4,19.79618055]
[1773120655785,6.12539919,2046.2,2045.4,19.79618055]
[1773120655983,8.334889,2046.3,2045.5,8.34918055]
[1773120656184,8.334889,2046.1,2045.5,8.35346067]
[1773120656790,8.334889,2046.1,2045.2,19.7928939]
[1773120657281,0.00591094,2046.5,2045.5,8.34918055]
[1773120657486,8.334889,2046.9,2045.7,8.34918055]
[1773120657686,8.334889,2046.9,2045.9,8.34918055]
[1773120658482,8.33958466,2046.9,2045.9,8.35421221]
[1773120659594,8.33958466,2046.9,2046.1,7.99805559]
[1773120659789,0.00469566,2046.9,2046.1,7.99805559]
[1773120660094,0.00469566,2046.9,2046.1,12.00772379]
[1773120660291,8.04985046,2047.6,2046.5,7.99805559]
[1773120660497,8.04985046,2047.4,2046.7,7.99805559]
[1773120661296,8.05617699,2047.4,2046.7,7.99805559]
[1773120661788,8.04985046,2048.0,2046.8,7.99805559]
[1773120662691,8.05389142,2048.0,2046.8,7.99805559]
[1773120663096,8.04985046,2047.8,2046.4,7.99805559]
[1773120663397,8.04985046,2047.8,2046.7,19.54105559]
[1773120663791,8.04985046,2047.8,2046.5,7.81167264]
[1773120663988,7.68340156,2047.6,2046.5,19.36267264]
[1773120665394,7.68340156,2047.6,2046.6,7.81167264]
[1773120665794,7.68340156,2047.6,2046.5,11.551]
[1773120665998,6.08232426,2047.5,2046.4,7.81167264]
[1773120666195,7.68340156,2047.4,2046.4,7.81167264]
[1773120672095,7.92761156,2047.3,2046.2,7.81167264]
[1773120672293,7.68340156,2047.3,2046.2,7.81167264]
[1773120673200,7.68340156,2047.3,2046.4,7.81167264]
[1773120673399,7.68340156,2047.3,2046.6,7.81167264]
[1773120673893,7.68340156,2047.3,2046.4,7.81167264]
[1773120675700,7.68340156,2047.3,2046.6,7.81167264]
[1773120677196,7.68340156,2047.3,2046.7,19.46067264]
[1773120677395,7.68340156,2047.3,2046.8,7.81167264]
[1773120678902,7.68340156,2047.3,2046.6,11.66]
[1773120679202,7.68340156,2047.3,2046.7,7.81167264]
[1773120682004,7.68340156,2047.6,2046.7,7.81167264]
[1773120682207,7.68340156,2047.4,2046.7,7.81167264]
[1773120682396,7.68340156,2047.2,2045.9,0.00503166]
[1773120682597,7.68340156,2046.4,2045.2,7.81167264]
[1773120682904,7.68340156,2046.2,2045.3,7.81167264]
[1773120683600,7.68737615,2046.2,2045.3,7.8173299]
[1773120687904,0.00397459,2046.2,2045.5,7.81167264]
[1773120688303,7.68737615,2046.2,2045.5,7.81167264]
[1773120688508,7.68737615,2046.2,2045.7,7.81167264]
[1773120688707,7.68737615,2046.2,2045.6,11.685]
[1773120688708,7.68737615,2046.2,2045.6,19.49667264]
[1773120689209,7.68737615,2046.2,2045.6,7.81167264]
[1773120693411,7.68737615,2046.2,2045.5,11.729]
[1773120694208,7.68737615,2046.2,2045.5,18.87641782]
[1773120694512,7.68737615,2046.2,2045.3,0.00565726]
[1773120694712,7.68737615,2046.2,2045.3,7.15307508]
[1773120694909,7.55164635,2046.0,2045.3,7.15307508]
[1773120695511,7.55164635,2046.0,2045.3,0.00565726]
[1773120695915,7.55164635,2045.8,2045.0,7.14741782]
[1773120697114,7.55164635,2045.9,2045.0,7.15139949]
[1773120699610,7.55164635,2045.9,2045.2,7.14741782]
[1773120705217,7.55164635,2045.8,2045.0,18.91539949]
[1773120705716,7.55164635,2045.6,2044.6,7.14741782]
[1773120706009,7.55164635,2045.4,2044.6,7.14741782]
[1773120706414,7.55164635,2045.4,2044.5,18.91741782]
[1773120706616,7.55164635,2045.4,2044.3,7.14741782]
[1773120706812,7.55164635,2045.4,2044.4,0.00545037]
[1773120707016,7.55164635,2045.2,2044.4,7.15286819]
[1773120707217,7.55164635,2045.0,2044.4,7.15286819]
[1773120707619,7.55164635,2045.2,2044.4,7.15286819]
[1773120709017,7.42025623,2045.4,2044.4,7.15286819]
[1773120709314,7.42025623,2045.8,2045.0,7.3943875]
[1773120709618,7.42025623,2045.8,2044.9,0.24449]
[1773120709619,7.42025623,2046.0,2045.2,7.3943875]
[1773120712516,7.42025623,2046.0,2045.3,7.3943875]
[1773120714620,7.42025623,2046.0,2045.4,19.2113875]
[1773120714920,7.42025623,2046.0,2045.5,7.3943875]
[1773120718621,7.42423082,2046.2,2045.5,7.3943875]
[1773120718825,0.00397459,2046.2,2045.5,7.3943875]
[1773120719220,7.42025623,2046.5,2045.5,7.3943875]
[1773120720126,7.42520362,2046.5,2045.5,7.3943875]
[1773120720529,7.42520362,2046.5,2045.6,11.857]
[1773120720728,7.42520362,2046.5,2045.7,7.3943875]
[1773120721930,0.00494739,2046.5,2045.7,7.3943875]
[1773120728525,7.27384206,2047.0,2045.9,6.93299453]
[1773120728730,7.27384206,2047.0,2046.1,6.93299453]
[1773120729534,7.27933081,2047.0,2046.1,6.93745451]
[1773120730538,7.27933081,2047.0,2046.2,11.913]
[1773120731033,7.27933081,2047.0,2046.2,18.84599453]
[1773120731230,7.27933081,2047.0,2046.3,6.93299453]
[1773120731433,7.27933081,2047.0,2046.1,0.00445998]
[1773120731633,7.52358081,2047.0,2045.6,6.93299453]
[1773120731830,7.27384206,2046.8,2045.6,6.93299453]
[1773120732137,7.27384206,2046.6,2045.6,6.93299453]
[1773120732836,7.27384206,2046.6,2045.6,6.93783453]
[1773120736741,7.27384206,2046.6,2045.6,18.87183453]
[1773120736940,7.27384206,2046.6,2045.7,6.93299453]
[1773120737639,7.27384206,2046.6,2045.6,6.93783453]
[1773120738339,7.27384206,2046.4,2045.6,6.93783453]
[1773120740641,7.27384206,2046.7,2045.6,6.93783453]
[1773120740947,7.27384206,2046.5,2045.6,6.93783453]
[1773120741539,7.27384206,2046.7,2045.6,6.93783453]
[1773120741738,13.46516183,2046.6,2045.6,6.93783453]
[1773120741946,13.46516183,2046.5,2045.6,6.93783453]